bitfinex/quotes_SOLUSD_20240921
["timestamp","ask_amount","ask_price","bid_price","bid_amount"]
[1726930027255,0.25098,149.01,148.98,23.4929]
[1726930027437,0.12549,149.01,148.98,16.7807]
[1726930027761,20.0,149.02,148.98,16.7807]
[1726930028063,0.12549,149.05,149.0,16.7775]
[1726930028242,6.7099,149.04,148.98,6.7118]
[1726930028450,20.25098,149.03,148.97,17.1050002]
[1726930028644,20.25098,149.03,148.98,0.68287053]
[1726930029062,20.25098,149.03,148.98,1.34227512]
[1726930029364,20.25098,149.03,148.99,6.7115]
[1726930030142,0.25098,149.03,149.0,6.7113]
[1726930030455,0.25098,149.04,149.0,6.7113]
[1726930030668,0.25098,149.04,149.01,6.7108]
[1726930032056,0.25098,149.04,148.99,23.4903]
[1726930032057,1.07550229,149.04,148.99,23.4903]
[1726930032860,0.25098,149.02,148.99,16.7786]
[1726930033071,0.25098,149.04,149.02,6.7104]
[1726930033272,1.07550229,149.04,148.99,16.7786]
[1726930033574,1.07550229,149.04,149.0,6.7113]
[1726930034357,7.78520229,149.04,148.99,23.4903]
[1726930034868,0.25098,149.02,148.99,23.4903]
[1726930035069,15.5258,149.06,149.01,16.7766]
[1726930035268,7.53362229,149.05,149.01,16.7766]
[1726930035575,7.53362229,149.05,149.01,23.4874]
[1726930035767,22.2345,149.06,149.01,23.4874]
[1726930036690,20.25098,149.05,149.01,23.4874]
[1726930036872,0.12549,149.05,149.01,16.7766]
[1726930037072,15.5258,149.06,149.04,6.7095]
[1726930037260,6.2795,149.07,149.04,6.7095]
[1726930037675,0.82452229,149.06,149.03,23.4843]
[1726930038276,20.82452229,149.06,149.03,23.4843]
[1726930040271,0.25098,149.05,149.02,6.7104]
[1726930041861,1.07550229,149.05,149.02,6.7104]
[1726930042088,1.07550229,149.05,149.03,6.71]
[1726930042289,1.07550229,149.05,149.02,6.7104]
[1726930043686,7.78460229,149.05,149.01,6.7108]
[1726930043863,20.0,149.04,149.01,6.7108]
[1726930044196,0.25098,149.03,149.01,6.7108]
[1726930044974,1.07550229,149.03,149.0,23.4894]
[1726930046073,1.07550229,149.03,149.0,16.778]
[1726930046989,7.78560229,149.03,148.99,6.7117]
[1726930047290,0.25098,149.01,148.99,6.7117]
[1726930048184,0.25098,149.01,148.97,17.1049002]
[1726930048390,0.25098,149.01,148.98,6.7122]
[1726930048591,20.25098,149.01,148.97,17.1049002]
[1726930048888,0.25098,149.02,148.98,6.7119]
[1726930049894,0.25098,149.02,148.98,8.05424118]
[1726930050072,6.2795,149.07,148.99,1.34210004]
[1726930051368,20.25098,149.06,149.02,6.7104]
[1726930051569,20.0,149.06,149.03,6.71]
[1726930051773,6.2795,149.07,149.04,6.7095]
[1726930053289,20.0,149.06,149.04,6.7095]
[1726930053787,20.0,149.06,149.03,16.7743]
[1726930053788,0.25098,149.05,149.03,16.7743]
[1726930056085,0.25098,149.05,149.03,23.4842]
[1726930056294,12.9878,149.07,149.03,16.7743]
[1726930056295,20.0,149.07,149.03,16.7743]
[1726930056479,20.0,149.1,149.06,6.7083]
[1726930057178,6.7069,149.1,149.06,6.7083]
[1726930057375,6.1511,149.11,149.07,6.7081]
[1726930058796,0.25098,149.09,149.07,6.7081]
[1726930063703,20.0,149.1,149.05,16.7719]
[1726930063883,16.6623611,149.12,149.06,13.43436849]
[1726930063884,0.2548611,149.12,149.06,13.43436849]
[1726930064085,0.2548611,149.12,149.1,6.7068]
[1726930065001,0.2548611,149.12,149.09,16.7678]
[1726930065305,0.25098,149.11,149.09,16.7678]
[1726930067502,20.25098,149.11,149.08,6.7074]
[1726930067802,0.82452229,149.1,149.07,6.7081]
[1726930068605,20.25098,149.11,149.07,6.7081]
[1726930068901,21.07550229,149.11,149.07,6.7081]
[1726930069608,20.25098,149.11,149.07,6.7081]
[1726930069797,6.95748,149.11,149.07,6.7081]
[1726930070796,0.25098,149.11,149.07,6.7081]
[1726930071005,20.25098,149.11,149.07,6.7081]
[1726930071804,0.25098,149.11,149.09,6.7072]
[1726930073604,0.25098,149.11,149.08,16.7689]
[1726930073798,0.25098,149.11,149.08,23.4765]
[1726930075585,0.2548611,149.12,149.1,23.4735]
[1726930075784,0.2548611,149.12,149.1,16.7667]
[1726930076789,1.07938339,149.12,149.1,16.7667]
[1726930077811,0.2548611,149.12,149.1,16.7667]
[1726930078304,1.07550229,149.11,149.07,16.77]
[1726930078527,0.25098,149.09,149.07,16.77]
[1726930078813,0.25098,149.09,149.07,23.4781]
[1726930080812,0.25098,149.09,149.06,6.7086]
[1726930080813,1.07550229,149.09,149.06,6.7086]
[1726930081210,1.07550229,149.09,149.05,6.7091]
[1726930081389,0.25098,149.09,149.06,18.1128884]
[1726930081591,0.25098,149.09,149.06,16.7712]
[1726930082407,0.25098,149.09,149.07,6.7081]
[1726930083324,0.82452229,149.08,149.06,16.7712]
[1726930083500,7.78290229,149.09,149.06,16.7712]
[1726930084800,0.25098,149.07,149.04,6.7095]
[1726930087606,0.25098,149.07,149.04,7.35915604]
[1726930087920,20.12549,149.09,149.06,6.7086]
[1726930088120,20.12549,149.09,149.07,6.7082]
[1726930088919,0.2548611,149.12,149.08,16.7695]
[1726930089126,0.2548611,149.12,149.09,6.7071]
[1726930089331,0.2548611,149.12,149.1,6.7068]
[1726930089527,0.2548611,149.12,149.08,23.4769]
[1726930090323,20.2548611,149.12,149.08,23.4769]
[1726930092008,0.25098,149.11,149.08,23.4769]
[1726930093626,27.78200229,149.11,149.05,16.7723]
[1726930093825,26.95748,149.11,149.06,6.7083]
[1726930095834,26.95748,149.11,149.06,8.04759526]
[1726930097809,26.95748,149.11,149.06,6.7083]
[1726930098009,0.25098,149.09,149.06,6.7083]
[1726930098727,20.25098,149.09,149.06,6.7083]
[1726930100237,0.12549,149.09,149.08,6.7078]
[1726930101538,0.12549,149.09,149.08,30.484684]
[1726930101750,0.2548611,149.12,149.11,23.4725]
[1726930103230,0.2548611,149.12,149.11,16.7661]
[1726930104355,0.2548611,149.12,149.11,23.4725]
[1726930108346,0.2548611,149.12,149.11,95.79667898]
[1726930108530,0.2548611,149.12,149.11,83.701284]
[1726930108870,0.2548611,149.12,149.11,63.701284]
[1726930110062,0.2548611,149.12,149.11,47.249384]
[1726930114268,0.2548611,149.12,149.11,48.59023704]
[1726930115532,0.2548611,149.12,149.11,47.249384]
[1726930116142,0.2548611,149.12,149.11,48.59017437]
[1726930118757,0.2548611,149.12,149.11,47.249384]
[1726930118960,0.2548611,149.12,149.11,47.95349646]
[1726930120354,0.2548611,149.12,149.11,47.249384]
[1726930120539,0.2548611,149.12,149.11,47.95337892]
[1726930122675,0.2548611,149.12,149.11,48.59024652]
[1726930125575,0.2548611,149.12,149.11,47.249384]
[1726930126374,0.2548611,149.12,149.11,46.749384]
[1726930128279,0.2548611,149.12,149.11,48.09026383]
[1726930133475,0.2548611,149.12,149.11,46.749384]
[1726930135999,0.2548611,149.12,149.11,48.09024468]
[1726930140306,0.2548611,149.12,149.11,60.18563966]
[1726930140587,0.2548611,149.12,149.11,68.09024468]
[1726930140789,0.2548611,149.12,149.11,78.84477898]
[1726930143590,0.2548611,149.12,149.11,66.749384]
[1726930144089,0.2548611,149.12,149.11,46.749384]
[1726930146769,0.2548611,149.12,149.11,22.9725]
[1726930153109,21.9150411,149.12,149.08,16.7692]
[1726930153310,21.9150411,149.12,149.01,124.7294273]
[1726930153311,0.25098,149.11,149.07,6.7078]
[1726930153607,20.25098,149.11,149.07,6.7081]
[1726930154297,26.95758,149.11,149.06,6.7085]
[1726930156612,20.0,149.11,149.08,6.7077]
[1726930156915,20.0,149.11,149.09,1.34128884]
[1726930157287,20.0,149.11,149.08,6.7077]
[1726930158884,20.0,149.11,149.07,23.478]
[1726930159192,0.25098,149.1,149.07,23.4781]
[1726930160098,20.0,149.11,149.07,16.7699]
[1726930160595,20.0,149.11,149.09,6.7069]
[1726930160801,20.0,149.11,149.07,16.7699]
[1726930160802,20.0,149.11,149.08,6.7077]
[1726930161506,20.0,149.11,149.09,8.04863161]
[1726930161700,20.0,149.11,149.09,6.7073]
[1726930162405,21.6640611,149.12,149.1,6.7069]
[1726930162598,21.6640611,149.12,149.09,16.7677]
[1726930162599,20.0,149.11,149.09,16.7677]
[1726930163603,20.0,149.11,149.07,6.7081]
[1726930164002,26.7065,149.11,149.08,0.70257335]
[1726930164207,26.7065,149.11,149.07,6.7081]
[1726930165117,26.7065,149.11,149.06,23.4796]
[1726930168817,26.7065,149.11,149.07,6.7082]
[1726930168996,26.7065,149.11,149.07,8.04962554]
[1726930169617,26.7065,149.11,149.07,6.7082]
[1726930172503,26.7065,149.11,149.07,7.10469127]
[1726930174230,26.7065,149.11,149.08,1.34142519]
[1726930176099,26.7065,149.11,149.07,6.7082]
[1726930177125,0.2548611,149.12,149.07,6.7082]
[1726930177339,0.2548611,149.12,149.08,23.776884]
[1726930177503,0.2548611,149.12,149.11,6.7064]
[1726930177911,0.2548611,149.12,149.11,8.04738667]
[1726930178511,0.2548611,149.12,149.09,8.04798676]
[1726930179108,0.2548611,149.12,149.11,23.4725]
[1726930183828,0.2548611,149.12,149.11,47.249384]
[1726930184132,0.2548611,149.12,149.11,80.68554631]
[1726930197837,0.2548611,149.12,149.11,68.59015133]
[1726930198044,0.2548611,149.12,149.11,80.68554631]
[1726930198251,0.2548611,149.12,149.11,67.249384]
[1726930198564,6.11e-05,149.12,149.11,79.34477898]
[1726930198853,6.11e-05,149.12,149.11,80.6853633]
[1726930200438,6.11e-05,149.12,149.11,80.9363433]
[1726930202751,6.11e-05,149.12,149.11,79.59575898]
[1726930203547,6.11e-05,149.12,149.11,130.39986057]
[1726930204053,6.11e-05,149.12,149.11,130.14888057]
[1726930204245,6.11e-05,149.12,149.11,74.27660159]
[1726930204943,6.11e-05,149.12,149.11,75.61737904]
[1726930205664,6.11e-05,149.12,149.11,95.61737904]
[1726930206462,6.11e-05,149.12,149.11,119.39426304]
[1726930209656,6.11e-05,149.12,149.11,131.48965802]
[1726930211160,6.11e-05,149.12,149.11,48.59016145]
[1726930211663,6.11e-05,149.12,149.11,80.68555643]
[1726930214152,6.11e-05,149.12,149.11,80.93653643]
[1726930214863,6.11e-05,149.12,149.11,144.79110076]
[1726930215068,6.11e-05,149.12,149.11,143.45032331]
[1726930232872,6.11e-05,149.12,149.11,143.19934331]
[1726930233665,6.11e-05,149.12,149.11,143.45032331]
[1726930240564,0.2548611,149.17,149.16,56.9857]
[1726930240794,0.2548611,149.17,149.16,69.08109498]
[1726930240972,0.2548611,149.17,149.16,94.19830928]
[1726930241288,0.2548611,149.17,149.16,114.19830928]
[1726930241898,0.2548611,149.17,149.16,114.44928928]
[1726930241899,6.11e-05,149.17,149.16,114.44928928]
[1726930244082,6.11e-05,149.17,149.16,112.85797898]
[1726930248989,6.11e-05,149.17,149.16,114.44907465]
[1726930249282,6.11e-05,149.17,149.16,113.10895898]
[1726930250984,6.11e-05,149.17,149.16,113.9181171]
[1726930252106,6.11e-05,149.17,149.16,113.10895898]
[1726930252299,6.11e-05,149.17,149.16,114.44906195]
[1726930253313,6.11e-05,149.17,149.16,112.85797898]
[1726930264202,6.11e-05,149.17,149.16,114.19816056]
[1726930266013,6.11e-05,149.17,149.16,112.85797898]
[1726930266318,6.11e-05,149.17,149.16,56.9857]
[1726930269121,6.11e-05,149.17,149.16,80.762584]
[1726930289044,6.11e-05,149.17,149.16,16.7605]
[1726930290243,6.11e-05,149.17,149.15,6.7045]
[1726930290821,6.11e-05,149.17,149.14,6.705]
[1726930291145,6.11e-05,149.17,149.15,6.7045]
[1726930292220,6.11e-05,149.17,149.16,6.7042]
[1726930301456,6.11e-05,149.17,149.15,23.4655]
[1726930305954,0.1255511,149.17,149.12,16.7643]
[1726930306266,0.25098,149.16,149.12,16.7643]
[1726930306442,21.07550229,149.16,149.12,23.47]
[1726930307070,20.25098,149.16,149.12,23.47]
[1726930307279,0.25098,149.16,149.13,6.7052]
[1726930307571,20.0000611,149.17,149.14,6.705]
[1726930307946,0.12549,149.16,149.13,6.7054]
[1726930308160,21.07550229,149.16,149.12,23.4699]
[1726930308559,20.12549,149.16,149.13,6.7054]
[1726930308874,20.0000611,149.17,149.13,6.7054]
[1726930309059,0.25098,149.16,149.13,6.7054]
[1726930313183,20.25098,149.16,149.13,6.7054]
[1726930314967,21.07550229,149.16,149.13,6.7054]
[1726930315356,20.25098,149.16,149.12,23.4702]
[1726930316364,20.25098,149.16,149.13,6.7054]
[1726930316678,6.95548,149.16,149.12,16.7643]
[1726930316851,6.705,149.15,149.1,6.7068]
[1726930317051,20.25098,149.14,149.1,6.7068]
[1726930317669,21.07550229,149.14,149.1,6.7068]
[1726930319966,20.25098,149.14,149.1,6.7068]
[1726930322359,0.82452229,149.13,149.1,6.7068]
[1726930323199,20.25098,149.14,149.1,6.7068]
[1726930323969,20.25098,149.14,149.11,6.7062]
[1726930325963,27.78100229,149.14,149.09,16.7677]
[1726930326297,0.25098,149.11,149.07,6.7079]
[1726930326478,1.07550229,149.11,149.07,6.7079]
[1726930327286,0.25098,149.11,149.07,6.7079]
[1726930327994,1.07550229,149.11,149.08,6.7077]
[1726930332693,27.15060229,149.11,149.07,6.7081]
[1726930333412,33.85710229,149.11,149.07,6.7081]
[1726930333714,0.25098,149.09,149.07,6.7081]
[1726930334812,21.07550229,149.09,149.06,0.2548]
[1726930335014,0.25098,149.07,149.06,0.2548]
[1726930335999,26.32608,149.07,149.06,0.2548]
[1726930338207,33.03428,149.07,149.06,0.2548]
[1726930338417,26.32608,149.07,149.06,0.2548]
[1726930339893,20.12549,149.07,149.06,6.9635]
[1726930340091,0.12549,149.07,149.06,6.9635]
[1726930340316,0.12549,149.07,149.06,30.740384]
[1726930342011,0.12549,149.12,149.09,6.7072]
[1726930342900,20.12549,149.13,149.09,6.7072]
[1726930343914,6.5841,149.17,149.13,6.7052]
[1726930345014,20.25098,149.16,149.13,6.7052]
[1726930348117,0.82452229,149.15,149.13,6.7052]
[1726930348313,0.82452229,149.15,149.12,23.4702]
[1726930348513,0.25098,149.13,149.11,6.7064]
[1726930348716,0.25098,149.13,149.1,6.7067]
[1726930349108,20.0,149.16,149.11,16.7653]
[1726930349424,0.25098,149.15,149.11,16.7653]
[1726930350333,0.25098,149.15,149.13,6.7054]
[1726930352712,0.25098,149.15,149.08,16.7691]
[1726930353038,0.25098,149.13,149.08,16.7691]
[1726930353214,0.82452229,149.12,149.08,16.7691]
[1726930353408,0.82452229,149.12,149.09,6.7072]
[1726930353935,0.82452229,149.12,149.1,6.7068]
[1726930354116,0.25098,149.13,149.1,6.7068]
[1726930354315,20.0,149.16,149.12,6.7057]
[1726930354541,0.82452229,149.15,149.12,6.7057]
[1726930354738,20.0,149.16,149.12,6.7057]
[1726930355441,20.82452229,149.16,149.12,6.7057]
[1726930355841,0.25098,149.15,149.12,6.7057]
[1726930357239,1.07550229,149.15,149.12,6.7057]
[1726930357628,0.25098,149.15,149.12,8.04676726]
[1726930357936,0.25098,149.15,149.13,6.7054]
[1726930358135,6.5841,149.17,149.13,16.7627]
[1726930358342,16.1277,149.18,149.16,6.7042]
[1726930358531,16.1277,149.18,149.15,23.4654]
[1726930358847,16.1277,149.18,149.16,6.7041]
[1726930359220,16.1277,149.18,149.15,23.4654]
[1726930362319,6.7025,149.2,149.15,23.4654]
[1726930362320,20.25098,149.2,149.16,1.34085077]
[1726930362951,20.25098,149.2,149.15,16.7609]
[1726930363249,20.25098,149.2,149.17,6.7035]
[1726930363634,0.82452229,149.19,149.16,6.7041]
[1726930364270,13.5410222,149.21,149.14,6.7051]
[1726930364271,0.25098,149.16,149.14,6.7051]
[1726930365547,0.25098,149.16,149.13,6.7054]
[1726930365763,20.25098,149.17,149.14,6.705]
[1726930370470,20.25098,149.17,149.14,6.6134]
[1726930371870,20.25098,149.18,149.15,6.7045]
[1726930372561,20.25098,149.18,149.14,6.705]
[1726930377068,6.95438,149.18,149.14,6.705]
[1726930377273,0.25098,149.16,149.14,6.705]
[1726930378969,20.25098,149.18,149.14,6.705]
[1726930379476,0.25098,149.18,149.14,18.10282558]
[1726930379973,0.25098,149.18,149.15,6.7045]
[1726930381069,1.07550229,149.18,149.15,6.7045]
[1726930382681,21.07550229,149.18,149.15,6.7045]
[1726930383972,21.07550229,149.18,149.14,23.4669]
[1726930384181,6.7038,149.17,149.14,16.7619]
[1726930384468,0.25098,149.16,149.13,6.7055]
[1726930387758,26.95528,149.16,149.11,16.7656]
[1726930387956,34.19450229,149.16,149.11,16.7656]
[1726930388870,27.49020229,149.16,149.12,6.7056]
[1726930389549,26.66568,149.16,149.12,6.7056]
[1726930393546,0.82452229,149.15,149.12,6.7056]
[1726930394076,26.66568,149.16,149.13,6.7055]
[1726930397978,26.66568,149.16,149.12,6.7058]
[1726930401667,26.66568,149.16,149.13,6.7051]
[1726930402163,26.4147,149.16,149.15,6.7046]
[1726930402468,0.12549,149.17,149.15,6.7046]
[1726930403066,6.2612,149.2,149.17,6.7036]
[1726930408091,7.08572229,149.2,149.17,6.7036]
[1726930408480,0.25098,149.19,149.15,16.761]
[1726930408707,6.95398,149.19,149.15,16.761]
[1726930408888,20.25098,149.19,149.15,23.4655]
[1726930409285,20.25098,149.19,149.16,6.7041]
[1726930410285,0.25098,149.19,149.16,6.7041]
[1726930410705,20.25098,149.19,149.16,6.7041]
[1726930411111,0.2549222,149.21,149.2,6.7024]
[1726930412882,0.2549222,149.21,149.2,30.479284]
[1726930415392,0.2549222,149.21,149.2,31.81943253]
[1726930417107,0.2549222,149.21,149.19,16.7565]
[1726930417485,0.2549222,149.21,149.2,6.7024]
[1726930418785,0.2549222,149.21,149.2,8.04270864]
[1726930419311,0.2549222,149.21,149.2,30.479284]
[1726930419993,0.2549222,149.21,149.2,6.7024]
[1726930425031,0.2549222,149.21,149.19,16.7565]
[1726930425325,0.2549222,149.21,149.19,23.4592]
[1726930426523,0.2549222,149.21,149.2,6.7024]
[1726930427228,0.2549222,149.21,149.2,8.04278954]
[1726930427538,0.2549222,149.21,149.2,6.7024]
[1726930437832,0.2549222,149.21,149.2,8.04265098]
[1726930440737,0.2549222,149.21,149.2,6.7024]
[1726930443833,0.2549222,149.21,149.2,8.04264553]
[1726930444039,0.2549222,149.21,149.2,31.81952953]
[1726930444818,0.2549222,149.21,149.2,30.479284]
[1726930445031,0.2549222,149.21,149.2,31.81939539]
[1726930445341,0.2549222,149.21,149.2,30.479284]
[1726930445519,0.2549222,149.21,149.2,6.7024]
[1726930449143,0.2549222,149.21,149.2,8.04264805]
[1726930449339,0.2549222,149.21,149.2,6.7024]
[1726930449851,0.2549222,149.21,149.2,8.04264633]
[1726930452150,0.2549222,149.21,149.2,6.7024]
[1726930454948,0.2549222,149.21,149.2,8.04264816]
[1726930455246,0.2549222,149.21,149.2,6.7024]
[1726930456247,0.2549222,149.21,149.2,8.04258099]
[1726930457638,0.2549222,149.21,149.2,6.7024]
[1726930458952,0.2549222,149.21,149.2,8.02229972]
[1726930460348,0.2549222,149.21,149.2,31.79918372]
[1726930464859,0.2549222,149.21,149.2,30.479284]
[1726930465359,0.2549222,149.21,149.2,31.81938023]
[1726930472937,0.2549222,149.21,149.2,30.479284]
[1726930474960,0.2549222,149.21,149.2,31.81602769]
[1726930475652,0.2549222,149.21,149.2,30.479284]
[1726930475974,0.2549222,149.21,149.2,31.81452505]
[1726930477376,0.2549222,149.21,149.2,30.479284]
[1726930478283,0.2549222,149.21,149.2,31.76836777]
[1726930480371,0.2549222,149.21,149.2,30.479284]
[1726930481369,0.2549222,149.21,149.2,31.81937842]
[1726930481572,0.2549222,149.21,149.2,30.479284]
[1726930482786,0.2549222,149.21,149.2,31.8176741]
[1726930484486,0.2549222,149.21,149.2,30.479284]
[1726930485088,0.2549222,149.21,149.2,31.8194023]
[1726930487490,0.2549222,149.21,149.2,30.479284]
[1726930493095,0.2549222,149.21,149.2,6.7024]
[1726930498598,0.2549222,149.21,149.2,8.04262046]
[1726930499984,0.2549222,149.21,149.2,31.81950446]
[1726930500700,0.2549222,149.21,149.2,43.91489944]
[1726930500999,0.2549222,149.21,149.2,49.40552695]
[1726930501301,2.22e-05,149.21,149.2,69.65650695]
[1726930501694,2.22e-05,149.21,149.2,68.31628649]
[1726930502000,2.22e-05,149.21,149.2,62.82565898]
[1726930502168,2.22e-05,149.21,149.2,68.31333651]
[1726930502789,2.22e-05,149.21,149.2,55.96696153]
[1726930502973,2.22e-05,149.21,149.2,68.97959681]
[1726930503787,2.22e-05,149.21,149.2,68.06235651]
[1726930503991,2.22e-05,149.21,149.2,68.31333651]
[1726930504197,2.22e-05,149.21,149.2,69.24962241]
[1726930504372,2.22e-05,149.21,149.2,68.31333651]
[1726930511905,2.22e-05,149.21,149.2,12.19007753]
[1726930512086,2.22e-05,149.21,149.2,6.7024]
[1726930513598,2.22e-05,149.21,149.2,30.479284]
[1726930516099,2.22e-05,149.21,149.2,31.81935141]
[1726930517428,2.22e-05,149.21,149.2,30.479284]
[1726930519328,2.22e-05,149.21,149.2,43.91465546]
[1726930520420,2.22e-05,149.21,149.2,42.57467898]
[1726930520604,2.22e-05,149.21,149.2,43.91460585]
[1726930520927,2.22e-05,149.21,149.2,62.57467898]
[1726930528212,2.22e-05,149.21,149.2,50.479284]
[1726930531203,2.22e-05,149.21,149.2,30.479284]
[1726930531411,2.22e-05,149.21,149.2,6.7024]
[1726930536121,2.22e-05,149.21,149.2,8.04261815]
[1726930536727,2.22e-05,149.21,149.2,6.7024]
[1726930537334,2.22e-05,149.21,149.2,8.04261897]
[1726930540339,2.22e-05,149.21,149.2,6.7024]
[1726930540715,15.545,149.23,149.22,23.4552]
[1726930540716,12.002467,149.23,149.22,23.4552]
[1726930542238,12.002467,149.23,149.19,16.7566]
[1726930542421,0.25098,149.21,149.13,72.05625807]
[1726930542620,0.25098,149.21,149.18,6.7032]
[1726930542818,0.82452229,149.2,149.18,6.7032]
[1726930543539,1.07550229,149.21,149.18,6.7032]
[1726930543740,0.25098,149.21,149.19,6.7027]
[1726930545051,6.3219,149.22,149.21,23.4568]
[1726930547646,6.44739,149.22,149.21,23.4568]
[1726930547849,6.44739,149.22,149.21,16.7549]
[1726930550229,6.3219,149.22,149.21,23.4568]
[1726930555338,12.002467,149.23,149.22,6.7015]
[1726930556647,20.25098,149.25,149.23,6.7008]
[1726930558670,21.07550229,149.25,149.22,6.7014]
[1726930558966,21.07550229,149.25,149.21,23.4568]
[1726930559351,21.07550229,149.25,149.22,6.7013]
[1726930559352,20.25098,149.25,149.22,6.7013]
[1726930559952,20.25098,149.25,149.23,6.701]
[1726930563466,20.25098,149.25,149.22,6.7013]
[1726930563947,0.82452229,149.24,149.21,23.4567]
[1726930564354,0.25098,149.23,149.21,16.7549]
[1726930564554,0.12549,149.23,149.21,16.7549]
[1726930565346,0.12549,149.24,149.21,23.4567]
[1726930569451,20.0,149.25,149.23,6.701]
[1726930569669,20.0,149.25,149.22,6.7014]
[1726930570453,20.0,149.25,149.24,6.7006]
[1726930570770,20.12549,149.25,149.23,23.453]
[1726930574581,20.12549,149.25,149.23,16.7521]
[1726930581491,20.95001229,149.25,149.23,16.7521]
[1726930581681,20.12549,149.25,149.23,16.7521]
[1726930582067,20.95001229,149.25,149.23,16.7521]
[1726930582976,20.95001229,149.25,149.17,33.5174]
[1726930582977,0.25098,149.24,149.2,16.7552]
[1726930583780,1.07550229,149.24,149.2,16.7552]
[1726930583969,0.25098,149.24,149.2,16.7552]
[1726930584368,0.25098,149.24,149.21,6.7017]
[1726930585490,1.07550229,149.24,149.21,6.7017]
[1726930586368,0.25098,149.24,149.2,23.4575]
[1726930587592,0.25098,149.24,149.21,6.7018]
[1726930589891,0.357326,149.27,149.26,6.6997]
[1726930592687,0.482816,149.27,149.24,16.7515]
[1726930592874,0.25098,149.26,149.24,23.4521]
[1726930594473,0.25098,149.26,149.25,6.7001]
[1726930595696,0.25098,149.26,149.24,23.452]
[1726930597594,0.25098,149.26,149.24,16.7515]
[1726930597896,0.25098,149.26,149.23,6.701]
[1726930604601,0.25098,149.26,149.24,6.7005]
[1726930604787,1.07550229,149.26,149.24,6.7005]
[1726930605386,0.25098,149.26,149.24,6.7005]
[1726930620613,7.77560229,149.26,149.2,23.4573]
[1726930620817,7.77560229,149.26,149.17,33.5174]
[1726930620818,20.25098,149.22,149.17,33.5174]
[1726930621106,0.82452229,149.21,149.18,6.7029]
[1726930621695,0.82452229,149.21,149.19,6.7027]
[1726930621894,0.12549,149.22,149.19,6.7027]
[1726930622102,20.25098,149.23,149.19,6.7027]
[1726930623400,20.25098,149.23,149.2,0.9912346]
[1726930623600,22.3072,149.26,149.2,0.9912346]
[1726930623601,0.25098,149.24,149.21,6.7016]
[1726930625616,22.3072,149.26,149.23,6.701]
[1726930625790,22.4321002,149.3,149.24,6.7003]
[1726930625991,6.6985,149.29,149.24,6.7003]
[1726930626991,29.1301002,149.3,149.25,6.6998]
[1726930627211,22.4321002,149.3,149.26,6.6997]
[1726930627512,6.9471002,149.3,149.26,8.03952307]
[1726930628019,0.3235002,149.3,149.26,8.03952307]
[1726930628609,0.3235002,149.3,149.26,6.6997]
[1726930628809,0.3235002,149.3,149.26,7.63894387]
[1726930629113,0.3235002,149.3,149.26,8.03938134]
[1726930629994,0.3235002,149.3,149.26,31.81626534]
[1726930630807,0.3235002,149.3,149.26,30.476584]
[1726930630997,0.3235002,149.3,149.26,50.476584]
[1726930633200,0.3235002,149.3,149.26,51.42342783]
[1726930633401,0.3235002,149.3,149.26,50.476584]
[1726930634226,0.3235002,149.3,149.26,51.81604188]
[1726930635734,0.3235002,149.3,149.26,50.476584]
[1726930637230,0.3235002,149.3,149.26,51.81604352]
[1726930638409,0.3235002,149.3,149.26,63.9114385]
[1726930638410,2.6e-05,149.27,149.26,63.9114385]
[1726930638931,2.6e-05,149.27,149.26,62.82295898]
[1726930639310,2.6e-05,149.27,149.26,68.28088857]
[1726930640012,2.6e-05,149.27,149.26,62.82295898]
[1726930640415,2.6e-05,149.27,149.26,115.68217596]
[1726930643429,2.6e-05,149.27,149.26,115.43119596]
[1726930646318,44.027864,149.42,149.27,43.776884]
[1726930646521,44.027864,149.42,149.32,6.6969]
[1726930646921,0.25098,149.4,149.32,6.6969]
[1726930647120,0.25098,149.38,149.32,6.6969]
[1726930647341,0.25098,149.36,149.32,6.6969]
[1726930648821,1.07550229,149.36,149.31,16.7429]
[1726930649017,0.25098,149.36,149.31,16.7429]
[1726930649219,0.25098,149.34,149.31,16.7429]
[1726930649647,20.0,149.35,149.32,6.6968]
[1726930649938,21.63,149.36,149.32,6.6968]
[1726930650422,21.63,149.36,149.31,16.7429]
[1726930650630,21.63,149.36,149.33,6.6965]